bitfinex-derivatives/quotes_BNBF0:USTF0_20250810
["timestamp","ask_amount","ask_price","bid_price","bid_amount"]
[1754806245322,0.21394648,814.1,814.0,1.65576572]
[1754806246321,0.21394648,814.1,814.01,1.65576572]
[1754806246519,0.21394648,814.1,814.0,1.65576572]
[1754806248025,0.21394648,814.1,814.01,1.65576572]
[1754806249627,0.21394648,814.1,814.02,1.65576572]
[1754806249822,0.21394648,814.1,814.01,1.65576572]
[1754806250021,0.21394648,814.1,814.0,1.65576572]
[1754806250323,0.21394648,814.1,814.02,1.65576572]
[1754806252129,0.21394648,814.1,814.03,1.65576572]
[1754806255428,0.21394648,814.1,813.51,2.75971933]
[1754806255833,0.21394648,814.1,813.59,2.75971933]
[1754806256234,0.21394648,814.1,813.6,2.75971933]
[1754806259337,0.21394648,814.1,813.61,2.75971933]
[1754806262939,0.21394648,814.1,813.62,2.75971933]
[1754806265546,0.21394648,814.1,813.64,2.75971933]
[1754806270152,0.21394648,814.1,813.65,2.75971933]
[1754806271254,0.01315545,814.1,813.65,2.75971933]
[1754806271453,0.5,814.2,813.65,2.75971933]
[1754806271652,0.5,814.2,814.18,1.65461568]
[1754806271855,0.5,814.2,814.18,0.72963442]
[1754806272753,0.5,814.2,813.67,2.75971933]
[1754806273256,0.5,814.2,813.55,2.75971933]
[1754806273951,0.286,814.11,813.55,2.75971933]
[1754806274155,0.5,814.2,813.55,2.75971933]
[1754806274352,0.21391689,813.98,813.53,2.75971933]
[1754806275454,0.21391689,813.98,813.52,2.75971933]
[1754806275959,0.21391689,813.98,813.51,2.75971933]
[1754806276159,0.21391689,813.98,813.52,1.07415344]
[1754806276359,0.21391689,813.98,813.51,2.75971933]
[1754806276556,0.21391689,813.98,813.57,2.75971933]
[1754806276956,0.21391689,813.98,813.67,2.75971933]
[1754806277560,0.5,814.51,813.71,2.75971933]
[1754806277761,0.21392807,814.09,813.71,2.75971933]
[1754806277961,0.5,814.51,813.71,2.75971933]
[1754806278160,0.5,814.51,813.68,2.75971933]
[1754806278462,0.5,814.51,813.69,1.07322592]
[1754806278659,0.5,814.51,813.79,2.75971933]
[1754806278858,0.21390637,814.31,813.79,2.75971933]
[1754806279161,0.21390637,814.31,813.77,2.75971933]
[1754806279559,0.21390637,814.31,813.76,2.75971933]
[1754806280060,0.21390637,814.31,813.74,2.75971933]
[1754806280263,0.21390637,814.31,813.75,1.07223065]
[1754806280464,0.21390637,814.31,813.76,1.07223065]
[1754806280662,0.21390637,814.31,813.7,2.75971933]
[1754806280865,0.21390637,814.31,813.71,1.0721553]
[1754806281058,0.21390637,814.31,813.72,1.0721553]
[1754806281364,0.01011466,814.31,813.73,1.0721553]
[1754806281565,0.01011466,814.31,813.7,2.75971933]
[1754806281566,0.5,814.51,813.74,1.0721553]
[1754806281764,0.5,814.51,813.75,1.0721553]
[1754806282065,0.5,814.51,813.69,2.75971933]
[1754806282264,0.5,814.51,813.7,1.07181298]
[1754806282562,0.5,814.51,813.71,1.07181298]
[1754806282762,0.5,814.51,813.72,1.07181298]
[1754806282967,0.5,814.51,813.73,1.07181298]
[1754806283165,0.5,814.51,813.66,2.75971933]
[1754806283365,0.5,814.51,813.67,1.07092763]
[1754806283563,0.5,814.51,813.68,1.07092763]
[1754806283768,0.5,814.51,813.69,1.07092763]
[1754806283963,0.5,814.51,813.7,1.07092763]
[1754806284168,0.5,814.51,813.71,1.07092763]
[1754806284370,0.5,814.51,813.72,1.07092763]
[1754806284571,0.21390506,814.31,813.73,1.07092763]
[1754806284768,0.21390506,814.31,813.62,2.75971933]
[1754806284967,0.21390506,814.31,813.63,1.0706108]
[1754806285167,0.21390506,814.31,813.64,1.0706108]
[1754806285472,0.21390506,814.31,813.65,1.0706108]
[1754806285769,0.21390506,814.31,813.66,1.0706108]
[1754806285969,0.21390506,814.31,813.67,1.0706108]
[1754806286172,0.21390506,814.31,813.68,1.0706108]
[1754806286369,0.21390506,814.31,813.69,1.0706108]
[1754806286569,0.21390506,814.31,813.7,1.0706108]
[1754806286868,0.21390506,814.31,813.71,1.0706108]
[1754806287071,0.21390506,814.31,813.72,1.0706108]
[1754806287274,0.21390506,814.31,813.73,1.0706108]
[1754806287469,0.21390506,814.31,813.74,1.0706108]
[1754806287773,0.21390506,814.31,813.54,2.75971933]
[1754806287969,0.21390506,814.31,813.55,1.06969219]
[1754806288173,0.21390506,814.31,813.56,1.06969219]
[1754806288472,0.21390506,814.31,813.58,2.75971933]
[1754806288669,0.21390506,814.31,813.59,1.06969219]
[1754806288969,0.21390506,814.31,813.6,1.06969219]
[1754806289169,0.21390506,814.31,813.61,1.06969219]
[1754806289473,0.21390506,814.31,813.62,1.06969219]
[1754806289673,0.21390506,814.31,813.63,1.06969219]
[1754806289973,0.21390506,814.31,813.56,2.75971933]
[1754806289974,0.21390506,814.31,813.64,1.06969219]
[1754806290273,0.21390506,814.31,813.65,1.06969219]
[1754806290473,0.21390506,814.31,813.66,1.06969219]
[1754806290673,0.21390506,814.31,813.67,1.06969219]
[1754806290969,0.21390506,814.31,813.68,1.06969219]
[1754806291168,0.21390506,814.31,813.69,1.06969219]
[1754806291370,0.21390506,814.31,813.7,1.06969219]
[1754806291570,0.21390506,814.31,813.66,2.75971933]
[1754806291769,0.21390506,814.31,813.67,1.06881539]
[1754806291972,0.21390506,814.31,813.68,1.06881539]
[1754806292171,0.21390506,814.31,813.69,1.06881539]
[1754806292370,0.21390506,814.31,813.7,1.06881539]
[1754806292569,0.21390506,814.31,813.66,2.75971933]
[1754806292769,0.21390506,814.31,813.67,1.06863332]
[1754806292972,0.21390506,814.31,813.66,2.75971933]
[1754806292973,0.21390506,814.31,813.68,1.06863332]
[1754806293170,0.21390506,814.31,813.69,1.06863332]
[1754806293369,0.21390506,814.31,813.7,1.06863332]
[1754806293675,0.21390506,814.31,813.68,2.75971933]
[1754806293871,0.21390506,814.31,813.69,1.06848542]
[1754806294070,0.21390506,814.31,813.7,1.06848542]
[1754806294271,0.21390506,814.31,813.68,2.75971933]
[1754806294476,0.21390506,814.31,813.69,1.06834307]
[1754806294673,0.21390506,814.31,813.71,2.75971933]
[1754806295275,0.21390506,814.31,814.23,1.64630552]
[1754806295477,0.21390506,814.31,814.16,1.64630552]
[1754806295775,0.21390506,814.31,814.12,1.64630552]
[1754806296174,0.21390506,814.31,814.26,1.64630552]
[1754806296378,0.21390506,814.31,814.29,1.64630552]
[1754806296979,0.21390506,814.31,814.27,1.64630552]
[1754806297375,0.21390506,814.31,814.26,1.64630552]
[1754806297975,0.21390506,814.31,814.27,1.64630552]
[1754806298179,0.21390506,814.31,814.24,1.64630552]
[1754806301880,0.21390506,814.31,814.21,1.64630552]
[1754806302375,0.21390506,814.31,814.22,1.64630552]
[1754806303180,0.21390506,814.31,814.17,1.64630552]
[1754806304683,0.21390506,814.31,814.18,1.64630552]
[1754806305281,0.21390506,814.31,814.16,1.64630552]
[1754806305483,0.21390506,814.31,814.17,1.64630552]
[1754806305883,0.327,814.29,814.16,1.64630552]
[1754806306183,0.21390506,814.31,814.16,1.64630552]
[1754806307382,0.21390506,814.31,814.14,1.64630552]
[1754806308185,0.21390506,814.31,814.11,1.64630552]
[1754806309085,0.21390506,814.31,814.12,1.64630552]
[1754806310384,0.21390506,814.31,814.15,1.64630552]
[1754806311189,0.21390506,814.31,814.16,1.64630552]
[1754806311689,0.5,814.3,814.16,1.64630552]
[1754806311889,0.21390506,814.31,814.16,1.64630552]
[1754806312287,0.21390506,814.31,814.17,1.64630552]
[1754806313191,0.21390506,814.31,814.24,1.64630552]
[1754806313388,0.21390506,814.31,814.25,1.64630552]
[1754806315089,0.21390506,814.31,814.26,1.64630552]
[1754806316290,0.21390506,814.31,814.27,1.64630552]
[1754806317095,0.21390506,814.31,814.3,1.64630552]
[1754806317395,0.21390506,814.31,813.69,2.75971933]
[1754806317590,0.21390506,814.31,813.72,2.75971933]
[1754806318091,0.21390506,814.31,813.77,2.75971933]
[1754806319192,0.21390506,814.31,813.74,2.75971933]
[1754806319696,0.21390506,814.31,813.75,2.75971933]
[1754806321096,0.21390506,814.31,813.73,2.75971933]
[1754806321692,0.21390506,814.31,813.76,2.75971933]
[1754806322196,0.21390506,814.31,813.75,2.75971933]
[1754806322796,0.21390506,814.31,813.74,2.75971933]
[1754806323392,0.21390506,814.31,813.8,2.75971933]
[1754806324495,0.21390506,814.31,813.82,2.75971933]
[1754806325300,0.21390506,814.31,813.83,2.75971933]
[1754806326396,0.21390506,814.31,813.84,2.75971933]
[1754806327500,0.01102146,814.31,813.85,2.75971933]
[1754806327696,0.5,814.32,813.85,2.75971933]
[1754806327900,0.82570695,815.44,813.85,2.75971933]
[1754806327901,0.28,814.25,813.85,2.75971933]
[1754806328098,0.28,814.17,813.85,2.75971933]
[1754806328298,0.5,814.32,813.85,2.75971933]
[1754806328504,0.5,814.32,813.8,2.75971933]
[1754806328899,0.5,814.32,813.81,2.75971933]
[1754806329600,0.5,814.25,813.7,2.75971933]
[1754806329804,0.5,814.25,814.2,1.65374819]
[1754806330003,0.5,814.25,814.18,1.65374819]
[1754806330201,0.82570695,815.33,814.19,1.37374819]
[1754806330402,0.82570695,815.31,814.35,1.1027754]
[1754806330604,0.21386891,815.05,814.32,1.1027754]
[1754806330804,0.21386891,815.05,813.51,2.75971933]
[1754806330805,0.21386891,815.05,814.3,1.1027754]
[1754806331003,0.21386891,815.05,814.2,0.6027754]
[1754806331202,0.21386891,815.05,813.33,2.75971933]
[1754806331511,0.21386891,815.05,813.32,2.75971933]
[1754806331708,0.5,814.05,813.32,2.75971933]
[1754806334608,0.5,814.05,812.97,3.86360707]
[1754806334609,0.5,814.05,813.36,2.75971933]
[1754806335611,0.5,814.05,813.28,2.75971933]
[1754806335914,0.5,814.05,813.29,1.07408174]
[1754806336114,0.5,814.05,813.28,2.75971933]
[1754806336413,0.5,814.05,813.29,1.07388842]
[1754806336713,0.5,814.05,812.95,3.86360707]
[1754806336714,0.5,814.05,813.27,2.75971933]
[1754806337010,0.5,814.05,813.28,1.07386937]
[1754806337217,0.5,814.05,813.29,1.07386937]
[1754806337414,0.5,814.05,813.3,1.07386937]
[1754806337614,0.5,814.05,813.31,1.07386937]
[1754806337811,0.5,814.05,813.17,2.75971933]
[1754806338015,0.5,814.05,813.18,1.07365292]
[1754806338215,0.5,814.05,813.19,1.07365292]
[1754806338411,0.5,814.05,813.2,1.07365292]
[1754806338610,0.5,814.05,813.21,1.07365292]
[1754806338812,0.5,814.05,813.22,1.07365292]
[1754806339013,0.5,814.05,813.23,1.07365292]
[1754806339315,0.5,814.05,813.24,1.07365292]
[1754806339516,0.5,814.05,813.16,2.75971933]
[1754806339712,0.5,814.05,813.17,1.07346765]
[1754806339918,0.5,814.05,813.18,1.07346765]
[1754806340213,0.5,814.05,813.19,1.07346765]
[1754806340416,0.5,814.05,813.2,1.07346765]
[1754806340620,0.5,814.05,813.21,1.07346765]
[1754806340818,0.5,814.05,813.22,1.07346765]
[1754806341115,0.5,814.05,813.23,1.07346765]
[1754806341313,0.5,814.05,813.24,1.07346765]
[1754806341516,0.5,814.06,813.21,2.75971933]
[1754806341713,0.5,814.06,813.22,1.07280418]
[1754806341915,0.5,814.06,813.23,1.07280418]
[1754806342214,0.5,814.06,813.24,1.07280418]
[1754806342419,0.5,814.06,813.2,2.75971933]
[1754806342615,0.5,814.06,813.21,1.0727073]
[1754806342815,0.5,814.06,813.22,1.0727073]
[1754806343020,0.5,814.06,813.23,1.0727073]
[1754806343323,0.5,814.06,813.24,1.0727073]
[1754806343517,0.5,814.06,813.25,1.0727073]
[1754806343716,0.5,814.06,813.2,2.75971933]
[1754806343917,0.5,814.06,813.21,3.83222197]
[1754806344116,0.5,814.06,813.22,1.07250264]
[1754806344318,0.5,814.1,813.23,1.07250264]
[1754806344517,0.5,814.1,813.24,1.07250264]
[1754806344717,0.5,814.1,813.21,2.75971933]
[1754806344920,0.5,814.09,813.22,1.07243782]
[1754806345218,0.5,814.09,813.23,1.07243782]
[1754806345422,0.5,814.09,813.24,1.07243782]
[1754806345717,0.5,814.09,812.87,3.86360707]
[1754806345718,0.28,813.9,813.29,2.75971933]
[1754806345921,0.5,813.95,813.29,2.75971933]
[1754806346121,0.5,813.95,812.87,3.86360707]
[1754806346122,0.5,813.95,813.24,2.75971933]
[1754806346622,0.5,813.95,813.23,2.75971933]
[1754806347022,0.5,813.95,813.18,2.75971933]
[1754806347618,0.5,813.95,813.21,2.75971933]
[1754806347818,0.5,813.95,813.22,1.07208334]
[1754806348021,0.5,813.95,813.23,1.07208334]
[1754806348321,0.5,813.95,813.24,1.07208334]
[1754806348520,0.5,813.95,813.18,2.75971933]
[1754806348721,0.5,813.95,813.21,2.75971933]
[1754806348923,0.5,813.95,813.22,1.07202675]
[1754806349121,0.5,813.95,813.23,1.07202675]
[1754806349324,0.5,813.95,813.21,2.75971933]
[1754806349524,0.5,813.95,813.22,1.07191426]
[1754806349722,0.5,813.95,813.23,1.07191426]
[1754806349920,0.5,813.95,813.21,2.75971933]
[1754806350124,0.5,813.95,813.87,1.65069474]
[1754806350320,0.5,813.95,813.86,1.65069474]
[1754806351521,0.5,814.05,813.85,1.65069474]
[1754806352022,0.5,814.05,813.86,1.65069474]
[1754806352526,0.5,814.05,813.85,1.65069474]
[1754806353127,0.5,814.05,813.86,1.65069474]
[1754806353628,0.5,814.05,813.85,1.65069474]
[1754806354127,0.5,814.05,813.19,2.75971933]
[1754806354128,0.5,814.05,813.86,1.65069474]
[1754806354328,0.5,814.05,813.85,1.65069474]
[1754806355627,0.5,814.05,813.84,1.65069474]
[1754806356026,0.5,814.05,813.85,1.65069474]
[1754806356326,0.5,814.05,813.84,1.65069474]
[1754806356824,0.5,814.05,812.85,3.86360707]
[1754806356825,0.5,814.05,813.87,1.65069474]
[1754806357329,0.5,814.05,813.88,1.65069474]
[1754806358525,0.5,814.05,813.94,1.65069474]
[1754806359230,0.5,814.05,813.95,1.65069474]
[1754806359431,0.5,814.05,813.94,1.65069474]
[1754806360133,0.5,814.05,813.95,1.65069474]
[1754806360431,0.5,814.05,813.94,1.65069474]
[1754806361229,0.5,814.05,813.95,1.65069474]
[1754806361429,0.5,814.05,813.94,1.65069474]
[1754806362132,0.5,814.05,813.95,1.65069474]
[1754806364433,0.5,814.05,813.94,1.65069474]
[1754806365034,0.5,814.05,813.95,1.65069474]
[1754806365333,0.5,814.05,813.92,1.65069474]
[1754806366536,0.271,814.02,813.92,1.65069474]
[1754806366733,0.5,814.02,813.92,1.65069474]
[1754806367632,0.283,813.93,813.92,1.65069474]
[1754806367837,0.5,814.02,813.92,1.65069474]
[1754806368133,0.5,814.02,813.93,1.65069474]
[1754806368333,0.5,814.02,813.92,1.65069474]
[1754806368532,0.21386891,815.05,813.92,1.65069474]
[1754806368533,0.423,813.96,813.92,1.65069474]
[1754806368737,0.423,813.96,813.9,1.65069474]
[1754806369032,0.423,813.96,813.88,1.65069474]
[1754806369734,0.423,813.96,813.89,1.65069474]
[1754806370234,0.423,813.96,813.84,1.65069474]
[1754806370734,0.423,813.96,813.85,1.65069474]
[1754806371034,0.21386891,815.05,813.91,1.10039295]
[1754806371236,0.21386891,815.05,813.9,0.60039295]
[1754806371435,0.82570695,815.02,813.64,1.65069474]
[1754806371634,0.82570695,815.01,813.63,1.65069474]
[1754806372039,0.5,813.83,813.63,1.65069474]
[1754806373439,0.5,813.83,813.61,1.65069474]
[1754806373839,0.5,813.83,813.63,1.65069474]
[1754806374242,0.5,813.83,813.64,1.65069474]
[1754806374438,0.5,813.8,813.68,1.65069474]
[1754806374637,0.5,813.8,813.64,1.65069474]
[1754806375141,0.5,813.8,813.65,1.65069474]
[1754806375341,0.5,813.8,813.56,1.65069474]
[1754806376438,0.5,813.8,813.55,1.65069474]
[1754806377138,0.5,813.8,813.56,1.65069474]
[1754806377343,0.5,813.8,813.55,1.65069474]
[1754806377540,0.5,813.8,813.56,1.65069474]
[1754806377738,0.5,813.8,813.55,1.65069474]
[1754806378039,0.5,813.8,813.56,1.65069474]
[1754806378439,0.5,813.8,813.49,1.65069474]
[1754806378643,0.28,813.6,813.44,1.65069474]
[1754806378939,0.5,813.66,813.44,1.65069474]
[1754806379344,0.5,813.66,813.43,1.65069474]
[1754806380043,0.5,813.66,813.42,1.65069474]
[1754806380540,0.28,813.62,813.4,1.65069474]
[1754806380741,0.5,813.66,813.4,1.65069474]
[1754806381246,0.5,813.66,813.33,1.65069474]
[1754806381442,0.5,813.66,813.32,1.65069474]
[1754806381643,0.28,813.6,813.32,1.65069474]
[1754806381947,0.5,813.66,813.32,1.65069474]
[1754806382346,0.5,813.66,813.33,1.65069474]
[1754806382549,0.5,813.66,813.32,1.65069474]
[1754806383445,0.5,813.66,813.35,1.65069474]
[1754806384646,0.5,813.66,813.34,1.65069474]
[1754806384850,0.5,813.66,813.35,1.65069474]
[1754806385349,0.5,813.66,812.68,2.75971933]
[1754806385350,0.5,813.66,813.44,1.65069474]
[1754806385547,0.5,813.66,813.45,1.65069474]
[1754806387349,0.5,813.66,813.46,1.65069474]
[1754806387651,0.5,813.66,813.45,1.65069474]
[1754806388452,0.5,813.66,813.46,1.65069474]
[1754806389252,0.5,813.66,813.47,1.65069474]
[1754806389550,0.5,813.66,813.46,1.65069474]
[1754806389746,0.5,813.66,813.47,1.65069474]
[1754806390547,0.5,813.66,813.5,1.65069474]
[1754806390753,0.345,813.65,813.5,1.65069474]
[1754806390953,0.345,813.65,812.88,2.75971933]
[1754806390954,0.345,813.65,813.51,1.65069474]
[1754806391153,0.345,813.65,813.55,1.65069474]
[1754806391951,0.345,813.65,813.56,1.65069474]
[1754806392549,0.345,813.65,813.55,1.65069474]
[1754806392955,0.5,813.66,813.55,1.65069474]
[1754806393155,0.5,813.66,813.56,1.65069474]
[1754806393453,0.5,813.66,813.55,1.65069474]
[1754806393756,0.5,813.66,813.57,1.65069474]
[1754806393956,0.3,813.74,813.58,1.65069474]
[1754806394352,0.3,813.74,813.57,1.65069474]
[1754806394757,0.3,813.74,813.48,1.65069474]
[1754806395053,0.3,813.74,812.36,5.48671553]
[1754806395054,0.5,813.75,813.49,1.65069474]
[1754806395252,0.5,813.75,813.54,1.65069474]
[1754806395451,0.5,813.75,812.83,2.75971933]
[1754806395452,0.5,813.75,813.53,1.65069474]
[1754806396354,0.5,813.75,813.54,1.65069474]
[1754806396658,0.5,813.82,813.53,1.65069474]
[1754806396859,0.5,813.82,813.49,1.65069474]
[1754806397060,0.5,813.83,813.51,1.65069474]
[1754806397355,0.33,813.78,813.56,1.65069474]
[1754806397655,0.5,813.83,813.54,1.65069474]
[1754806398157,0.5,813.83,813.55,1.65069474]
[1754806399559,0.5,813.83,813.54,1.65069474]
[1754806399758,0.5,813.73,813.46,1.65069474]
[1754806400063,0.5,813.69,813.46,1.65069474]
[1754806401363,0.5,813.69,813.63,1.10130612]
[1754806401864,0.5,813.69,813.48,1.65069474]
[1754806402063,0.5,813.69,813.66,1.10122621]
[1754806402757,0.5,813.69,813.48,1.65069474]
[1754806402758,0.5,813.69,813.64,1.10122621]
[1754806404561,0.5,813.69,813.6,1.65069474]
[1754806404764,0.5,813.73,813.6,1.65069474]
[1754806405360,0.5,813.73,813.59,1.65069474]
[1754806405864,0.284,813.64,813.59,1.65069474]
[1754806406065,0.5,813.73,813.59,1.65069474]
[1754806407466,0.5,813.73,813.6,1.65069474]
[1754806407864,0.5,813.73,813.59,1.65069474]
[1754806408063,0.5,813.73,813.6,1.65069474]
[1754806408767,0.5,813.73,813.65,1.65069474]
[1754806410470,0.5,813.77,813.63,1.65069474]
[1754806410769,0.5,813.83,813.63,1.65069474]
[1754806410963,0.5,813.83,813.82,1.1013993]
[1754806412565,0.5,813.83,813.68,1.65069474]
[1754806412770,0.5,813.83,813.8,1.10143233]
[1754806413068,0.5,813.83,813.82,1.10143233]
[1754806413767,0.5,813.83,813.66,1.65069474]
[1754806414368,0.5,813.83,812.98,2.75971933]
[1754806414369,0.5,813.83,813.82,1.10137563]
[1754806415071,0.5,813.83,813.79,1.10137563]
[1754806415270,0.5,813.83,813.78,1.10137563]
[1754806416474,0.5,813.83,813.79,1.10137563]
[1754806418470,0.5,813.83,813.82,1.10137563]
[1754806419377,0.5,813.83,813.65,1.65069474]
[1754806419869,0.5,813.96,813.78,1.65069474]
[1754806420071,0.5,813.96,813.94,1.10158764]
[1754806420673,0.5,813.96,813.93,1.10158764]
[1754806421376,0.5,813.96,813.94,1.10158764]
[1754806421576,0.5,813.96,813.93,1.10158764]
[1754806421873,0.5,813.96,813.76,1.10158764]
[1754806423372,0.5,813.96,813.77,1.10158764]
[1754806423873,0.5,813.96,813.76,1.10158764]
[1754806424077,0.5,813.96,813.75,1.10158764]
[1754806425478,0.5,813.96,813.67,1.10158764]
[1754806426075,0.5,813.85,813.66,1.10158764]
[1754806427177,0.5,813.85,813.67,1.10158764]
[1754806427376,0.5,813.85,813.64,1.10158764]
[1754806427876,0.5,813.85,813.63,1.10158764]
[1754806428276,0.281,813.78,813.63,1.10158764]
[1754806428577,0.5,813.85,813.64,1.10158764]
[1754806428980,0.5,813.85,813.63,1.10158764]
[1754806429178,0.281,813.78,813.63,1.10158764]
[1754806429477,0.281,813.78,813.64,1.10158764]
[1754806429678,0.5,813.85,813.61,1.10158764]
[1754806430481,0.5,813.85,813.62,1.10158764]
[1754806430780,0.282,813.76,813.63,1.10158764]
[1754806430979,0.5,813.85,813.63,1.10158764]
[1754806431683,0.5,813.85,813.75,1.10158764]
[1754806431979,0.5,813.85,813.76,1.10158764]
[1754806432184,0.5,813.85,813.55,1.65069474]
[1754806432185,0.5,813.85,813.75,1.10158764]
[1754806433079,0.5,813.85,813.76,1.10158764]
[1754806433278,0.5,813.85,813.83,1.10158764]
[1754806434283,0.5,813.85,813.84,1.10158764]
[1754806434480,0.5,813.85,813.82,1.10158764]
[1754806434984,0.5,813.85,813.83,1.10158764]
[1754806435381,0.5,813.85,813.76,1.65069474]
[1754806435580,0.5,813.85,813.78,1.65069474]
[1754806435782,0.5,813.85,813.79,1.65069474]
[1754806435982,0.5,813.93,813.79,1.65069474]
[1754806437082,0.5,813.93,813.78,1.65069474]
[1754806437280,0.5,813.93,813.81,1.65069474]
[1754806438485,0.5,813.93,813.8,1.65069474]
[1754806438687,0.5,813.93,813.91,1.10090789]
[1754806438983,0.5,813.93,813.78,1.65069474]
[1754806439487,0.5,813.93,813.77,1.65069474]
[1754806440384,0.5,813.93,813.74,1.65069474]
[1754806442190,0.324,813.91,813.74,1.65069474]
[1754806442386,0.5,813.93,813.73,1.65069474]
[1754806442687,0.5,813.93,813.74,1.65069474]
[1754806443189,0.5,813.93,813.75,1.65069474]
[1754806443985,0.5,813.93,813.92,1.10004616]
[1754806444188,0.5,813.93,813.74,1.65069474]
[1754806444388,0.5,813.96,813.74,1.65069474]
[1754806444687,0.5,814.06,813.75,1.65069474]
[1754806444890,0.324,814.02,813.96,1.09981948]
[1754806445090,0.5,814.06,813.96,1.09981948]
[1754806445291,0.5,814.06,813.95,1.09981948]
[1754806446889,0.5,814.06,813.94,1.09981948]
[1754806447189,0.5,814.06,813.93,1.09981948]
[1754806447795,0.278,813.94,813.93,1.09981948]
[1754806448189,0.5,814.06,813.93,1.09981948]
[1754806448596,0.5,814.06,813.96,1.09981948]
[1754806448893,0.5,814.06,813.97,1.09981948]
[1754806449291,0.5,814.06,813.96,1.09981948]
[1754806450296,0.5,814.06,813.97,1.09981948]
[1754806453597,0.5,814.06,813.98,1.09981948]
[1754806454095,0.278,814.05,814.0,1.09981948]
[1754806454292,0.5,814.05,813.97,1.09981948]
[1754806455195,0.278,814.04,813.97,1.09981948]
[1754806455394,0.5,814.05,813.97,1.09981948]
[1754806456300,0.82660309,815.01,813.97,0.74181948]
[1754806457001,0.82660309,814.98,813.81,1.65069474]
[1754806457201,0.358,813.94,813.8,1.65069474]
[1754806457401,0.358,813.94,813.76,1.65069474]
[1754806457802,0.358,813.94,813.78,1.65069474]
[1754806459099,0.358,813.94,813.82,1.65069474]
[1754806459801,0.358,813.94,813.83,1.65069474]
[1754806462203,0.358,813.94,813.84,1.65069474]
[1754806462698,0.358,813.94,813.85,1.65069474]
[1754806463101,0.358,813.94,813.89,1.65069474]
[1754806463402,0.358,813.94,813.91,1.65069474]
[1754806464402,0.5,813.93,813.92,1.65069474]
[1754806465202,0.5,813.93,813.89,1.65069474]
[1754806465502,0.5,813.85,813.83,1.65069474]
[1754806466705,0.5,813.85,813.84,1.65069474]
[1754806466904,0.5,813.85,813.82,1.65069474]
[1754806467205,0.5,813.85,813.22,2.75971933]
[1754806467206,0.5,813.85,813.83,1.65069474]
[1754806467407,0.5,813.85,813.79,1.65069474]
[1754806467606,0.5,813.85,813.78,1.65069474]
[1754806467803,0.5,813.85,813.8,1.65069474]
[1754806468503,0.5,813.85,813.81,1.65069474]
[1754806469808,0.5,813.85,813.78,1.65069474]
[1754806470409,0.5,813.85,813.79,1.65069474]
[1754806471609,0.5,813.85,813.73,1.65069474]
[1754806472205,0.5,813.85,813.74,1.65069474]
[1754806475212,0.5,813.85,813.75,1.65069474]
[1754806475512,0.5,813.85,813.83,1.65069474]
[1754806476709,0.28,813.84,813.1,2.75971933]
[1754806476913,0.5,813.85,813.1,2.75971933]
[1754806477209,0.5,813.85,813.13,2.75971933]
[1754806477614,0.5,813.85,813.14,2.75971933]
[1754806478113,0.5,813.85,813.15,2.75971933]
[1754806479116,0.5,813.85,813.83,1.65636805]
[1754806479317,0.5,813.85,813.1,2.75971933]
[1754806479617,0.5,813.85,813.11,1.07555036]
[1754806479912,0.5,813.85,813.15,2.75971933]
[1754806481918,0.82660309,814.84,812.97,3.86360707]
[1754806481919,0.284,813.8,813.28,2.75971933]
[1754806482218,0.284,813.8,813.21,2.75971933]
[1754806482715,0.5,813.85,813.21,2.75971933]
[1754806484019,0.5,813.85,813.25,2.75971933]
[1754806484518,0.5,813.85,813.24,2.75971933]
[1754806485118,0.5,813.85,813.84,1.65500855]
[1754806485316,0.82660309,814.79,813.76,1.15500855]
[1754806485517,0.82660309,814.78,813.06,2.75971933]
[1754806485717,0.82660309,814.69,813.08,2.75971933]
[1754806486114,0.5,813.63,813.08,2.75971933]
[1754806486318,0.82660309,814.7,813.08,2.75971933]
[1754806486516,0.82660309,814.7,813.87,1.10351782]
[1754806486720,0.82660309,814.69,813.87,0.50868926]
[1754806487320,0.5,813.63,813.05,2.75971933]
[1754806487815,0.5,813.63,813.03,2.75971933]